Cogmind - Beta 12 @@@ ROGUE MODE // 2023.03.11 @ 22:59:44 // Winter2019/RPGLIKE Player: Wayland Result: Destroyed by G-47 Trooper with Particle Gun Performance ------------- Evolutions (2) 1000 Regions Visited (3) 600 Robots Destroyed (13) 65 Value Destroyed (528) 528 Prototype IDs (0) 0 Alien Tech Used (0) 0 Bonus (200) 200 TOTAL SCORE: 2393 Bonus ------- Pacifist 200 Cogmind --------- Core Integrity 0/800 Matter 270/300 Energy 396/410 System Corruption 0% Temperature Cool (10) Movement Rolling (80) Location -8/Materials Parts ------- > --- POWER (1) -------- Light Nuclear Core > --- PROPULSION (3) --- Wheel Wheel Wheel > --- UTILITY (3) ------ High-capacity Battery Light Armor Plating Hardened Medium Armor Plating > --- WEAPON (2) ------- Medium Laser Heavy Particle Cannon > --- INVENTORY (3) ---- Light Nuclear Core EM Pulse Gun Peak State ------------ > --- POWER ------------ Light Nuclear Core > --- PROPULSION ------- Wheel Wheel Wheel > --- UTILITY ---------- High-capacity Battery Light Armor Plating Hardened Medium Armor Plating > --- WEAPON ----------- Medium Laser Heavy Particle Cannon > --- INVENTORY -------- Light Nuclear Core EM Pulse Gun [Rating: 15] Favorites ----------- Power Ion Engine Engine Ion Engine Power Core Light Nuclear Core Propulsion Wheel Leg Aluminum Leg Wheel Wheel Utility High-capacity Battery Device Terrain Scanner Storage High-capacity Battery Processor Signal Interpreter Protection Hardened Medium Armor Plating Weapon Medium Laser Energy Gun Medium Laser Energy Cannon Heavy Particle Cannon Ballistic Gun Light Assault Rifle Launcher Rocket Launcher Build | -11 -10 -9 -8 ------- Run | Jun Mat Mat Mat Slots Evolved 5 | 3 . . 2 Power . | . . . . Propulsion 2 | 1 . . 1 Utility 2 | 1 . . 1 Weapon 1 | 1 . . . Parts Attached 30 | 4 3 4 19 Power 4 | 1 . . 3 Engine 1 | 1 . . . Core 3 | . . . 3 Reactor . | . . . . Propulsion 7 | 2 . . 5 Treads . | . . . . Leg . | . . . . Wheel 7 | 2 . . 5 Hover . | . . . . Flight . | . . . . Utility 10 | . 2 2 6 Device 1 | . . . 1 Storage 4 | . 1 1 2 Processor 3 | . 1 1 1 Hackware . | . . . . Protection 2 | . . . 2 Artifact . | . . . . Weapon 9 | 1 1 2 5 Energy Gun 5 | 1 1 1 2 Energy Cannon 3 | . . . 3 Ballistic Gun . | . . . . Ballistic Cannon . | . . . . Launcher 1 | . . 1 . Special Weapon . | . . . . Impact Weapon . | . . . . Slashing Weapon . | . . . . Piercing Weapon . | . . . . Special Melee Weapon . | . . . . Unidentified Prototypes . | . . . . Parts Lost . | . . . . Power . | . . . . Propulsion . | . . . . Utility . | . . . . Weapon . | . . . . Highest Loss Streak . | . . . . To Critical Strikes . | . . . . Average Slot Usage (%) 92 | . 96 100 87 Engine 8 | . 14 14 3 Core 3 | . . . 7 Wheel 26 | . 28 28 25 Storage 11 | . 12 11 10 Processor 11 | . 12 16 8 Protection 3 | . . . 7 Energy Gun 18 | . 24 26 12 Energy Cannon 4 | . . . 9 Ballistic Gun 1 | . 3 . . Naked Turns 8 | . . . 8 Heaviest Build 28 | 8 13 15 28 Greatest Support 30 | 26 26 26 30 Greatest Overweight (x) 1 | . . . 1 Average Overweight (x) . | . . . . Largest Inventory Capacity 3 | 3 3 3 3 Average Capacity 2 | 2 3 3 3 Most Carried 3 | 3 3 3 3 Average Carried 2 | . 2 2 2 Final Capacity 3 | 3 3 3 3 Final Carried 3 | 2 3 3 2 Class Distribution -------------------- 51% | Mutant 38% | Hacker-Mutant 10% | Scavenger-Mutant Dominant Class ---------------- Mutant | -10/Materials Mutant | -9/Materials Hacker-Mutant | -8/Materials Resources | -11 -10 -9 -8 ----------- Run | Jun Mat Mat Mat Matter Collected 470 | 200 70 . 200 Remotely . | . . . . Salvage Created 589 | . . 160 429 Parts 38 | . . 12 26 Haulers Intercepted . | . . . . Recyclers Shooed . | . . . . Parts Field Recycled . | . . . . Retrieved Matter . | . . . . Parts Self-Destructed . | . . . . Prevented . | . . . . Kills | -11 -10 -9 -8 ------- Run | Jun Mat Mat Mat Combat Hostiles Destroyed 11 | . . 5 6 Guns 3 | . . 3 . Cannons 5 | . . . 5 AOE 2 | . . 2 . Classes Destroyed 6 | . . 3 3 Builder 2 | . . . 2 Grunt 5 | . . 2 3 Duelist 1 | . . 1 . Sentry 3 | . . 2 1 Specialist 1 | . . . 1 Hunter 1 | . . . 1 Best Kill Streak 3 | . . 2 3 Combat Bots Only 3 | . . 2 3 Max Kills in Single Turn 2 | . . 2 1 Gunslinging . | . . . . Exploded 2 | . . 2 . Melee . | . . . . Uniques/NPCs Destroyed . | . . . . Combat | -11 -10 -9 -8 -------- Run | Jun Mat Mat Mat Damage Taken 1364 | . . 135 1229 Core 1102 | . . 108 994 Absorbed by Shields . | . . . . Redirected to Core 630 | . . 93 537 Core Remaining (%) 98 | 100 100 96 . Volleys Fired 56 | . . 14 42 Largest 2 | . . 2 2 Hottest 125 | . . 90 125 Shots Fired 100 | . . 28 72 Gun 70 | . . 28 42 Cannon 30 | . . . 30 Launcher . | . . . . Special . | . . . . Kinetic . | . . . . Thermal 51 | . . 14 37 Explosive . | . . . . Electromagnetic 49 | . . 14 35 Robot Hit Streak 8 | . . 8 6 Robot Miss Streak 4 | . . 1 4 Penetration Max . | . . . . Secondary Targets . | . . . . Shots Hit Robots 61 | . . 23 38 Core Hits 23 | . . 10 13 Critical Kills . | . . . . Critical Parts Destroyed . | . . . . Critical Strikes 2 | . . . 2 Burn 1 | . . . 1 Corrupt 1 | . . . 1 Melee Attacks . | . . . . Impact . | . . . . Slashing . | . . . . Piercing . | . . . . Sneak Attacks . | . . . . Combat Hostiles . | . . . . Follow-up Attacks . | . . . . Damage Inflicted 1202 | . . 401 801 Guns 524 | . . 266 258 Cannons 478 | . . . 478 Explosions 200 | . . 135 65 Melee . | . . . . Ramming . | . . . . Kinetic . | . . . . Thermal 854 | . . 273 581 Explosive . | . . . . Electromagnetic 348 | . . 128 220 Impact . | . . . . Slashing . | . . . . Piercing . | . . . . Highest Corruption . | . . . . Average Corruption . | . . . . Corruption Purged . | . . . . Corruption Blocked . | . . . . Overload Shots . | . . . . Overflow Damage . | . . . . Projectiles . | . . . . Explosions . | . . . . Melee . | . . . . Knockbacks . | . . . . Impact . | . . . . Kinetic . | . . . . Secondary . | . . . . Self-Inflicted Damage . | . . . . Shots . | . . . . Rammed . | . . . . Targets Rammed . | . . . . Kicked . | . . . . Crushed . | . . . . Highest Temperature 638 | . . 225 638 Average Temperature 191 | . . 105 222 Received Heat Transfer 390 | . . 84 306 Effects 14 | . . . 14 Shutdowns 5 | . . . 5 Energy Bleed 5 | . . . 5 Interference 2 | . . . 2 Short Circuit 1 | . . . 1 Damage (core) 1 | . . . 1 Siege Activations . | . . . . Robots Corrupted 1 | . . . 1 Combat Hostiles 1 | . . . 1 Parts Fried 1 | . . . 1 Impact Corruptions . | . . . . Robots Melted . | . . . . Combat Hostiles . | . . . . Parts Melted . | . . . . Heat Transferred 1595 | . . 607 988 Parts Sabotaged . | . . . . Parts Stolen . | . . . . Parts Stripped . | . . . . Power Chain Reactions 3 | . . 2 1 Missiles Intercepted . | . . . . Alert | -11 -10 -9 -8 ------- Run | Jun Mat Mat Mat Peak Influence 316 | . 28 178 316 Initial 74 | . . 11 74 Average 113 | . 3 108 175 Maximum Alert Level 1 | . . . 1 Low Security (%) 73 | 100 100 100 46 Level 1 26 | . . . 53 Level 2 . | . . . . Level 3 . | . . . . Level 4 . | . . . . Level 5 . | . . . . High Security . | . . . . Max Security . | . . . . Squads Dispatched 3 | . . 1 2 Investigation . | . . . . Extermination . | . . . . Reinforcement 3 | . . 1 2 Assault . | . . . . Garrison . | . . . . Intercept . | . . . . Searches Triggered . | . . . . Construction Impeded . | . . . . Haulers Reinforced . | . . . . Active Scanning Responses . | . . . . Cargo Convoy Interrupts . | . . . . Stealth | -11 -10 -9 -8 --------- Run | Jun Mat Mat Mat Distress Signals 2 | . . 1 1 Communications Jammed . | . . . . Distress Signals . | . . . . Times Spotted 22 | . . 11 11 Peak Tracking Total 4 | . . 4 4 Tactical Retreats . | . . . . Traps | -11 -10 -9 -8 ------- Run | Jun Mat Mat Mat Traps Triggered . | . . . . Indirectly . | . . . . Trap Hack Attempts . | . . . . Triggered . | . . . . Disarmed . | . . . . Reprogrammed . | . . . . Reused . | . . . . Traps Extracted . | . . . . Installed . | . . . . Triggered . | . . . . Machines | -11 -10 -9 -8 ---------- Run | Jun Mat Mat Mat Machines Disabled 1 | . . . 1 Max in Single Turn 1 | . . . 1 Machines Repaired . | . . . . Machines Sabotaged . | . . . . Overloaded Fab Kills . | . . . . Hacking | -11 -10 -9 -8 --------- Run | Jun Mat Mat Mat Machines Accessed 9 | . 5 2 2 Terminals 8 | . 5 1 2 Fabricators . | . . . . Repair Stations . | . . . . Recycling Units . | . . . . Scanalyzers 1 | . . 1 . Garrison Access . | . . . . Total Hacks 31 | . 11 14 6 Successful 18 | . 6 10 2 Failed 13 | . 5 4 4 Catastrophic 3 | . 2 . 1 Database Lockouts . | . . . . Manual 15 | . 8 4 3 Terminals 21 | . 11 4 6 Fabricators . | . . . . Repair Stations . | . . . . Recycling Units . | . . . . Scanalyzers 10 | . . 10 . Garrison Access . | . . . . Terminal Hacks 4 | . 3 . 1 Robot Analysis 1 | . 1 . . Level Access Points 1 | . 1 . . Unreport Threat 2 | . 1 . 1 Fabricator Hacks . | . . . . Repair Station Hacks . | . . . . Recycling Unit Hacks . | . . . . Scanalyzer 10 | . . 10 . Insert Component 5 | . . 5 . Analyze 5 | . . 5 . Garrison Access Hacks . | . . . . Unauthorized Hacks 4 | . 3 . 1 Terminals 4 | . 3 . 1 Track 1 | . 1 . . Botnet 3 | . 2 . 1 Fabricators . | . . . . Repair Stations . | . . . . Recycling Units . | . . . . Scanalyzers . | . . . . Garrison Access . | . . . . Data Cores Recovered . | . . . . Used . | . . . . Hacking Detections 7 | . 4 1 2 Full Trace Events . | . . . . Feedback Events . | . . . . Feedback Blocked . | . . . . Robot Schematics Acquired . | . . . . Robots Built . | . . . . Authchips . | . . . . Time . | . . . . Total Robot Build Rating . | . . . . Part Schematics Acquired 5 | . . 5 . Parts Built . | . . . . Authchips . | . . . . Time . | . . . . Total Part Build Rating . | . . . . Parts Repaired . | . . . . Time . | . . . . Parts Recycled . | . . . . Recycled Matter . | . . . . Retrieved Matter . | . . . . Retrieved Components . | . . . . Parts Scanalyzed 5 | . . 5 . Part Schematics Acquired 5 | . . 5 . Parts Damaged . | . . . . Bothacking | -11 -10 -9 -8 ------------ Run | Jun Mat Mat Mat Used RIF Installer . | . . . . Robots Hacked . | . . . . Non-combat . | . . . . Combat . | . . . . Robot Hacks Applied . | . . . . Relay Couplers Released . | . . . . Fabnet Peak Effective % . | . . . . Robots Rewired . | . . . . Allies Hacked . | . . . . Hacks Repelled . | . . . . Allies | -11 -10 -9 -8 -------- Run | Jun Mat Mat Mat Total Allies . | . . . . Largest Group . | . . . . Highest-Rated Group . | . . . . Highest-Rated Ally . | . . . . Total Orders . | . . . . Ally Attacks . | . . . . Total Damage . | . . . . Kills . | . . . . Allies Corrupted . | . . . . Allies Melted . | . . . . Intel | -11 -10 -9 -8 ------- Run | Jun Mat Mat Mat Robot Analysis Total 1 | . 1 . . Derelict Logs Recovered . | . . . . Drone Launches . | . . . . Drone Recoveries . | . . . . Exploration | -11 -10 -9 -8 ------------- Run | Jun Mat Mat Mat Turns Passed 981 | 18 241 239 483 Spaces Moved 692 | 9 193 191 299 Core 2 | . . . 2 Treads . | . . . . Legs 3 | 3 . . . Wheels 687 | 6 193 191 297 Hover . | . . . . Flight . | . . . . Fastest Speed 80 | 90 90 90 80 Average Speed 88 | 101 90 90 86 Slowest Speed 120 | 120 90 90 100 Overloaded Moves . | . . . . Propulsion Burnouts . | . . . . Robots Hopped . | . . . . Cave-ins Triggered . | . . . . Exploration Rate (%) 22 | 2 36 26 25 Regions Visited 3 Branch Regions . Pre-discovered Areas . | . . . . Known Exits Taken 2 | . 1 1 . Unknown Exits Taken 1 | 1 . . . Scrap Searched . | . . . . Spaces Dug 1 | . . . 1 Terrain Destroyed 21 | . . 9 12 Melee . | . . . . Projectile 10 | . . . 10 AOE 11 | . . 9 2 Terrain Rammed . | . . . . Walls Destroyed . | . . . . Machines Disabled . | . . . . Actions | -11 -10 -9 -8 --------- Run | Jun Mat Mat Mat Total 955 | 17 258 231 449 Wait 135 | . 62 7 66 Move 689 | 8 192 190 299 Hop . | . . . . Pick Up 15 | 4 1 5 5 Fast Attach 13 | 1 2 . 10 Attach 6 | 2 . 2 2 Detach 1 | . . 1 . Swap 11 | 1 1 2 7 Drop 14 | 1 . 5 8 Fire 56 | . . 14 42 Melee . | . . . . Ram . | . . . . Kick . | . . . . Crush . | . . . . Escape Stasis . | . . . . Rewire . | . . . . Trap . | . . . . Miscellaneous 15 | . . 5 10 Route ------- -11/Junkyard -10/Materials (discovered 3 exits: *Mat x3) -9/Materials -8/Materials History --------- Turn | Location | Event 1 | -11/Junkyard | Discovered new exit (range 0) 7 | -11/Junkyard | Upgraded with Propulsion slot (x1) 7 | -11/Junkyard | Upgraded with Utility slot (x1) 7 | -11/Junkyard | Upgraded with Weapon slot (x1) 19 | -11/Junkyard | Entered Materials 235 | -10/Materials | Identified exit to Materials 260 | -10/Materials | Entered another Materials area 262 | -9/Materials | Reached level 2 301 | -9/Materials | Build established: Mutant 488 | -9/Materials | Discovered new exit (range 13) 498 | -9/Materials | Identified exit to Materials 499 | -9/Materials | Entered another Materials area 501 | -8/Materials | Reached level 3 510 | -8/Materials | Upgraded with Utility slot (x1) 647 | -8/Materials | Released all parts (8) 701 | -8/Materials | Core integrity fell below 50% 725 | -8/Materials | Reached level 4 738 | -8/Materials | Core integrity fell below 20% 800 | -8/Materials | Upgraded with Propulsion slot (x1) 853 | -8/Materials | Build established: Hacker-Mutant 982 | -8/Materials | Destroyed by G-47 Trooper with Particle Gun Last Messages --------------- 00805_ Acquired 10 matter. 00818_ Dropped Terrain Scanner. 00818_ Discarded Terrain Scan Processor. 00819_ Acquired Hrd. Medium Armor Plating. 00825_ ALERT: Suspicious intruders detected, dispatching Specialist reinforcements to area. 00829_ K-01 Serf collects debris. 00832_ Acquired Lgt. Armor Plating. 00837_ K-01 Serf collects debris. 00841_ Slug penetrates Wall. 00844_ Penetrated by Slug. 00861_ X-62 Marksman destroyed. 00910_ Connecting with Terminal... >>Alert(Purge) Purged threat record, alert level lowered. 00910_ Connecting with Terminal... 00941_ Penetrated by Slug. 00962_ Material Compactor disabled. 00962_ Penetrated by Slug. 00978_ U-05 Engineer builds a Wall. 00981_ G-47 Trooper suffers critical hit (Burn). Map ----- +----------------------------------------------------+ | ?????????????????????????????????????????????????? | | ?????????????????????????????????????????????????? | | ?????????????????????????????????????????????????? | | ?????????????????????????????????????????????????? | | ?????????????????????????????????????????????????? | | ?????????????????????????????????????????????????? | | ?????????????????????????????????????????????????? | | ?????????????????????????????????????????????????? | | ?????????????????????????????????????????????????? | | ?????????????????????????????????????????????????? | | ?????????????????????????????????????????????????? | | ???????????????????????????????? ????????????????? | | ???????????????????????????????? ????????????????? | | ???????????????????????????????? ????????????????? | | ???????????????????????????????? ????????????????? | | ???????????????????????????????? ????????????????? | | ???????????????????????????????? ????????????????? | | ???????????????????????????????? ????????????????? | | ???????????????????????????????? ????????????????? | | ???????????????????????????????# #???????????????? | | ???????????????????????????????# #???????????????? | | ???????????????????????????????# #???????????????? | | ???????????????????????????????# #???????????????? | | ???????????????????????????????# #???????????????? | | ??????????????????????########## #???????????????? | | ??????????????????????# @""" # #???????????????? | | ??????????????????????# g """" # #???????????????? | | ??????????????????????# x""""" # #######?????????? | | ??????????????????????# """"" # #?????????? | | ??????????????????????# "" ; #?????????? | | ??????????????????????# # #?????????? | | ??????????????????????# # #####?????????? | | ??????????????????????# # ####??????????? | | ??????????????????????# # # #??????????? | | ??????????????????????########## + #??????????? | | ????????????#??????????????????# # #??????????? | | ???????????#???????????????????# ####??????????? | | ??#?????? ????#????????????????# #??????#??????? | | ???????????????????????????????# #???? #??????? | | ??###########???#??????????????# #?? #??????? | | ?# ? ??#?????????????# # ! #??????? | | ?# ?? ???????????????# + #??????? | | ??# ????????#????????????# # #??????? | | ?? """ ""??????#?#?############ #?? #??????? | | #?? """ ""??????????# ## ##???###??????? | | # #??"" ""??""? ??#?# # ########?????? | | # #####"##########?## """ # #??#### | | # =!%#![ #??# """ + ! #?? | | # =!=[#% #??#""" """ # #? | | # |%%%+ """#??#"T # #### #? | +----------------------------------------------------+ Best States ------------- Heat Dissipation 55 Energy Generation 14 Energy Capacity 500 Matter Stores 300 Matter Capacity 300 Sight Range 18 Terrain Scan Range 14 Terrain Scan Density 85 Armor Coverage 375 Resistance: KI 5 Resistance: TH 5 Evasion (%) 44 Melee Accuracy 5 Offensive Hacking 10 Defensive Hacking 10 Item Schematics ----------------- Rocket Launcher | -9/Materials | Scanalyzed Melee Analysis Suite | -9/Materials | Scanalyzed Lgt. Ion Engine | -9/Materials | Scanalyzed EM Pulse Gun | -9/Materials | Scanalyzed Hcp. Battery | -9/Materials | Scanalyzed Robot Schematics ------------------ None Fabricated ------------ Nothing Alien Tech Used ----------------- None Achievements -------------- None Challenges ------------ None RPGLIKE | -11 -10 -9 -8 --------- Run | Jun Mat Mat Mat Levels Raised 3 | . . 1 2 XP Earned 7775 | 3000 240 2150 2385 XP Spent 7410 | 3000 . 1405 3005 Upgrades 26 | 6 . 9 11 Propulsion Slot 2 | 1 . . 1 Utility Slot 2 | 1 . . 1 Weapon Slot 1 | 1 . . . Core Integrity 4 | . . 3 1 Heat Dissipation 5 | . . . 5 Inventory Capacity 3 | 3 . . . Sight Range 2 | . . 1 1 Hack Attack % 2 | . . 1 1 Hack Defense % 2 | . . 2 . KI Resistance % 1 | . . 1 . TH Resistance % 1 | . . 1 . TH Damage % 1 | . . . 1 Protomatter Created 146 | . . 93 53 Integrity Restored 331 | . . 106 225 Core 292 | . . 85 207 Parts 39 | . . 21 18 Protomatter Decayed 32 | . . 10 22 Game ------ Seed DrainedLightningMallet Manual? 0 Play Time 00:18:42 Cumulative 124.3 hours Start 2023.03.11 @ 22:43:04 End 2023.03.11 @ 22:59:44 Sessions 1 Manual Loads 0 Difficulty Rogue Special Mode Winter2019/RPGLIKE Game No. 191 Rogue 191 Adventurer 0 Explorer 0 Win Type - Total 2 Types 1/0/1/0/0/0/0/0/0 Lore% 50 Gallery% 59 Achievement% 50 Wizard Run 0 Options --------- ASCII 0 Keyboard 0 Movement Mouse Keybinds 0 Fullscreen 2 Font 24/Proggy Map View 113x50 Tactical HUD 1 Map Filters NONE Filters NONE Steam 1 RUN: 57937612-8833-4297-9278-c0ab6796cd01